[Event "***Titled Tuesday 3|2 Blitz"]
[Site "Chess.com"]
[Date "2017.02.07"]
[Round "3"]
[White "ChessMavenYeti"]
[Black "SCIM"]
[Result "0-1"]
[WhiteElo "2174"]
[BlackElo "2271"]
[TimeControl "180+2"]
[EndTime "13:41:54 PST"]
[Termination "SCIM won by resignation"]

1. Nf3 {[%clk 0:03:02]} 1... Nf6 {[%clk 0:02:57.5]} 2. g3 {[%clk 0:03:02.4]}
2... c5 {[%clk 0:02:56.9]} 3. Bg2 {[%clk 0:03:03]} 3... Nc6 {[%clk 0:02:57]} 4.
O-O {[%clk 0:03:03]} 4... g6 {[%clk 0:02:54.4]} 5. d4 {[%clk 0:03:02.8]} 5...
cxd4 {[%clk 0:02:54.2]} 6. Nxd4 {[%clk 0:03:00.5]} 6... Bg7 {[%clk 0:02:55]} 7.
c4 {[%clk 0:02:53.4]} 7... O-O {[%clk 0:02:54.3]} 8. Nc3 {[%clk 0:02:51.9]} 8...
d6 {[%clk 0:02:53.1]} 9. Nxc6 {[%clk 0:02:51.6]} 9... bxc6 {[%clk 0:02:53.2]}
10. Bxc6 {[%clk 0:02:52.1]} 10... Rb8 {[%clk 0:02:54.6]} 11. Bg2 {[%clk
0:02:51.4]} 11... Be6 {[%clk 0:02:53.7]} 12. Nd5 {[%clk 0:02:49.9]} 12... Nxd5
{[%clk 0:02:50.8]} 13. cxd5 {[%clk 0:02:50.3]} 13... Bd7 {[%clk 0:02:50.3]} 14.
Rb1 {[%clk 0:02:50.5]} 14... Qa5 {[%clk 0:02:47.1]} 15. a3 {[%clk 0:02:48.9]}
15... Rfc8 {[%clk 0:02:41.8]} 16. b4 {[%clk 0:02:33.4]} 16... Qa6 {[%clk
0:02:40.4]} 17. Re1 {[%clk 0:02:26.6]} 17... Ba4 {[%clk 0:02:38.8]} 18. Qd2
{[%clk 0:02:16.1]} 18... Bc3 {[%clk 0:02:34.5]} 19. Qh6 {[%clk 0:01:56.9]} 19...
Bxe1 {[%clk 0:02:29.4]} 20. Bg5 {[%clk 0:01:57.2]} 20... Bc3 {[%clk 0:02:22.4]}
21. Bxe7 {[%clk 0:01:57]} 21... Bg7 {[%clk 0:02:21.3]} 22. Qh4 {[%clk
0:01:56.6]} 22... Bc2 {[%clk 0:02:08.1]} 23. Re1 {[%clk 0:01:55]} 23... Re8
{[%clk 0:02:01.1]} 24. e4 {[%clk 0:01:47.4]} 24... Rb7 {[%clk 0:01:55.8]} 25.
Bf1 {[%clk 0:01:46]} 25... Qb6 {[%clk 0:01:51.8]} 26. Bg5 {[%clk 0:01:43.8]}
26... Qd4 {[%clk 0:01:44]} 27. Bg2 {[%clk 0:01:33.6]} 27... Rc7 {[%clk
0:01:28.6]} 28. Qf4 {[%clk 0:01:33.3]} 28... Bd3 {[%clk 0:01:10.9]} 29. Qxd6
{[%clk 0:01:30.8]} 29... Be5 {[%clk 0:01:10.5]} 30. Bf6 {[%clk 0:01:08.3]} 30...
Qxf2+ {[%clk 0:00:47.8]} 31. Kxf2 {[%clk 0:01:07.1]} 31... Bxd6 {[%clk
0:00:48.8]} 32. e5 {[%clk 0:01:03.3]} 32... Rc2+ {[%clk 0:00:47.4]} 33. Kg1
{[%clk 0:01:02.6]} 33... Bc7 {[%clk 0:00:47.2]} 34. Be4 {[%clk 0:00:53.2]} 34...
Bxe5 {[%clk 0:00:36.9]} 35. Bxe5 {[%clk 0:00:10.5]} 35... Rxe5 {[%clk
0:00:34.3]} 36. d6 {[%clk 0:00:11.2]} 36... Bxe4 {[%clk 0:00:33.1]} 37. d7
{[%clk 0:00:11.9]} 37... Rd2 {[%clk 0:00:33.2]} 0-1

[Event "***Titled Tuesday 3|2 Blitz"]
[Site "Chess.com"]
[Date "2017.02.07"]
[Round "3"]
[White "Robin-Side"]
[Black "Vamostodorecto"]
[Result "0-1"]
[WhiteElo "2373"]
[BlackElo "2270"]
[TimeControl "180+2"]
[EndTime "13:41:56 PST"]
[Termination "Vamostodorecto won by resignation"]

1. d4 {[%clk 0:03:02]} 1... d5 {[%clk 0:02:58.7]} 2. Nc3 {[%clk 0:03:01.9]} 2...
Nf6 {[%clk 0:02:55.3]} 3. e4 {[%clk 0:03:02.8]} 3... dxe4 {[%clk 0:02:56.5]} 4.
f3 {[%clk 0:03:04]} 4... exf3 {[%clk 0:02:56.4]} 5. Nxf3 {[%clk 0:03:05.9]} 5...
Bg4 {[%clk 0:02:53.6]} 6. h3 {[%clk 0:03:06.1]} 6... Bxf3 {[%clk 0:02:53]} 7.
Qxf3 {[%clk 0:03:08]} 7... c6 {[%clk 0:02:54.2]} 8. Qf2 {[%clk 0:03:09]} 8... e6
{[%clk 0:02:53.5]} 9. Bd3 {[%clk 0:03:10]} 9... Nbd7 {[%clk 0:02:53.4]} 10. Bd2
{[%clk 0:03:10.8]} 10... Qc7 {[%clk 0:02:51.6]} 11. g4 {[%clk 0:03:08]} 11... h6
{[%clk 0:02:50.9]} 12. O-O-O {[%clk 0:03:09]} 12... O-O-O {[%clk 0:02:43]} 13.
Rhg1 {[%clk 0:03:10]} 13... Nb6 {[%clk 0:02:36.8]} 14. h4 {[%clk 0:03:09.9]}
14... Nfd5 {[%clk 0:02:15.3]} 15. Ne4 {[%clk 0:03:06.2]} 15... Na4 {[%clk
0:02:08.7]} 16. b3 {[%clk 0:02:19.3]} 16... Ba3+ {[%clk 0:02:07.3]} 17. Kb1
{[%clk 0:02:20.1]} 17... Nb2 {[%clk 0:02:07.4]} 18. Rdf1 {[%clk 0:02:02.4]}
18... Nxd3 {[%clk 0:02:04.5]} 19. cxd3 {[%clk 0:02:04.3]} 19... Rhf8 {[%clk
0:01:56.4]} 20. g5 {[%clk 0:02:04.5]} 20... h5 {[%clk 0:01:52.6]} 21. g6 {[%clk
0:01:28.7]} 21... fxg6 {[%clk 0:01:48.2]} 22. Qg2 {[%clk 0:01:29.5]} 22... Bb4
{[%clk 0:01:29.3]} 23. Qxg6 {[%clk 0:01:24.7]} 23... Bxd2 {[%clk 0:01:23.9]} 24.
Qxe6+ {[%clk 0:01:23.2]} 24... Kb8 {[%clk 0:01:24.2]} 25. Nxd2 {[%clk
0:01:24.5]} 25... Rfe8 {[%clk 0:01:21.2]} 26. Qf7 {[%clk 0:01:08.3]} 26... Qa5
{[%clk 0:01:14.8]} 27. Ne4 {[%clk 0:00:35.8]} 27... Nc3+ {[%clk 0:00:52.6]} 28.
Nxc3 {[%clk 0:00:28.5]} 28... Qxc3 {[%clk 0:00:53]} 29. Qc4 {[%clk 0:00:17.7]}
29... Qxd4 {[%clk 0:00:49.7]} 30. Rxg7 {[%clk 0:00:13.4]} 30... Qxg7 {[%clk
0:00:39.8]} 31. Qf4+ {[%clk 0:00:06.4]} 31... Qe5 {[%clk 0:00:38.8]} 32. Qf7
{[%clk 0:00:05.6]} 32... Re7 {[%clk 0:00:38.2]} 33. Qf3 {[%clk 0:00:04.9]} 33...
Qd5 {[%clk 0:00:37.7]} 34. Qf6 {[%clk 0:00:05.1]} 34... Qxd3+ {[%clk 0:00:38]}
35. Kb2 {[%clk 0:00:06.8]} 35... Qd4+ {[%clk 0:00:38.2]} 36. Qxd4 {[%clk
0:00:07]} 36... Rxd4 {[%clk 0:00:39.8]} 37. Rf7 {[%clk 0:00:08.7]} 37... Rxf7
{[%clk 0:00:39.4]} 0-1

[Event "***Titled Tuesday 3|2 Blitz"]
[Site "Chess.com"]
[Date "2017.02.07"]
[Round "3"]
[White "Gergo85"]
[Black "oskariot"]
[Result "1-0"]
[WhiteElo "2408"]
[BlackElo "2519"]
[TimeControl "180+2"]
[EndTime "13:42:04 PST"]
[Termination "Gergo85 won on time"]

1. e4 {[%clk 0:03:02]} 1... c5 {[%clk 0:03:00.9]} 2. Nf3 {[%clk 0:03:00.5]} 2...
g6 {[%clk 0:03:02]} 3. d4 {[%clk 0:02:58.8]} 3... cxd4 {[%clk 0:03:03.9]} 4.
Qxd4 {[%clk 0:02:58.8]} 4... Nf6 {[%clk 0:03:04.8]} 5. Nc3 {[%clk 0:02:58]} 5...
Nc6 {[%clk 0:03:05.4]} 6. Qa4 {[%clk 0:02:59]} 6... d6 {[%clk 0:02:38]} 7. e5
{[%clk 0:03:00.2]} 7... dxe5 {[%clk 0:02:39]} 8. Nxe5 {[%clk 0:03:00.5]} 8...
Bd7 {[%clk 0:02:40.3]} 9. Nxd7 {[%clk 0:03:01]} 9... Qxd7 {[%clk 0:02:29.9]} 10.
Be2 {[%clk 0:03:02.1]} 10... Bg7 {[%clk 0:02:28]} 11. Bf4 {[%clk 0:03:02.8]}
11... O-O {[%clk 0:02:26.1]} 12. Rd1 {[%clk 0:03:03.5]} 12... Qf5 {[%clk
0:02:20.1]} 13. O-O {[%clk 0:02:47.8]} 13... Rad8 {[%clk 0:02:16.3]} 14. Bd3
{[%clk 0:02:37.9]} 14... Qg4 {[%clk 0:02:02.9]} 15. Bc7 {[%clk 0:02:15.2]} 15...
Rd7 {[%clk 0:01:56.8]} 16. Qxg4 {[%clk 0:02:04.4]} 16... Nxg4 {[%clk 0:01:56.9]}
17. Bg3 {[%clk 0:02:05.2]} 17... Bxc3 {[%clk 0:01:54.8]} 18. bxc3 {[%clk
0:02:07.1]} 18... Rfd8 {[%clk 0:01:45.3]} 19. Rb1 {[%clk 0:02:07.3]} 19... Nge5
{[%clk 0:01:40.4]} 20. Be4 {[%clk 0:02:05.7]} 20... Nc4 {[%clk 0:01:30.3]} 21.
Bxc6 {[%clk 0:01:54.1]} 21... bxc6 {[%clk 0:01:30.4]} 22. Rb4 {[%clk 0:01:55.7]}
22... Nb6 {[%clk 0:01:14.5]} 23. a4 {[%clk 0:01:43]} 23... f6 {[%clk 0:01:14]}
24. a5 {[%clk 0:01:42.4]} 24... Nd5 {[%clk 0:00:43]} 25. Rc4 {[%clk 0:01:32.6]}
25... Rc8 {[%clk 0:00:44.1]} 26. Rb1 {[%clk 0:01:30.8]} 26... a6 {[%clk
0:00:32.8]} 27. Kf1 {[%clk 0:01:13.8]} 27... e5 {[%clk 0:00:33]} 28. Ke2 {[%clk
0:01:11.1]} 28... Kf7 {[%clk 0:00:30.8]} 29. f3 {[%clk 0:01:09.7]} 29... Ke6
{[%clk 0:00:30.7]} 30. Bf2 {[%clk 0:01:10.7]} 30... Nf4+ {[%clk 0:00:26.1]} 31.
Kf1 {[%clk 0:01:11.9]} 31... Rd2 {[%clk 0:00:25.5]} 32. Rc1 {[%clk 0:00:23.6]}
32... Kd5 {[%clk 0:00:19.2]} 33. Rb4 {[%clk 0:00:20.9]} 33... Rd8 {[%clk
0:00:05.9]} 34. Be3 {[%clk 0:00:21.8]} 1-0

[Event "***Titled Tuesday 3|2 Blitz"]
[Site "Chess.com"]
[Date "2017.02.07"]
[Round "3"]
[White "Cruel_Yaro"]
[Black "TheCount"]
[Result "1-0"]
[WhiteElo "2607"]
[BlackElo "2494"]
[TimeControl "180+2"]
[EndTime "13:42:05 PST"]
[Termination "Cruel_Yaro won on time"]

1. e4 {[%clk 0:02:47]} 1... e5 {[%clk 0:03:00.3]} 2. Nf3 {[%clk 0:02:47.1]} 2...
Nc6 {[%clk 0:03:00.8]} 3. Bb5 {[%clk 0:02:46.9]} 3... a6 {[%clk 0:03:01.4]} 4.
Ba4 {[%clk 0:02:47.7]} 4... Nf6 {[%clk 0:03:00.9]} 5. O-O {[%clk 0:02:48.7]}
5... Be7 {[%clk 0:03:02]} 6. Re1 {[%clk 0:02:49.7]} 6... b5 {[%clk 0:03:01.9]}
7. Bb3 {[%clk 0:02:51.1]} 7... d6 {[%clk 0:03:03.5]} 8. c3 {[%clk 0:02:52.4]}
8... O-O {[%clk 0:03:01.6]} 9. h3 {[%clk 0:02:54]} 9... Bb7 {[%clk 0:02:56.5]}
10. d4 {[%clk 0:02:53.6]} 10... Nd7 {[%clk 0:02:56.8]} 11. Nbd2 {[%clk
0:02:53.1]} 11... exd4 {[%clk 0:02:57.2]} 12. cxd4 {[%clk 0:02:53.7]} 12... Bf6
{[%clk 0:02:58.9]} 13. Nf1 {[%clk 0:02:54.6]} 13... Na5 {[%clk 0:02:59.6]} 14.
Bc2 {[%clk 0:02:55.2]} 14... Re8 {[%clk 0:03:01.1]} 15. Ng3 {[%clk 0:02:52.6]}
15... g6 {[%clk 0:03:00]} 16. Rb1 {[%clk 0:02:45.6]} 16... c5 {[%clk 0:02:50.9]}
17. b4 {[%clk 0:02:41.6]} 17... cxb4 {[%clk 0:02:25.4]} 18. Rxb4 {[%clk
0:02:42]} 18... Nc4 {[%clk 0:02:19.4]} 19. a4 {[%clk 0:02:17.8]} 19... Qa5
{[%clk 0:02:08.9]} 20. Rb1 {[%clk 0:02:18]} 20... Ndb6 {[%clk 0:01:51.5]} 21.
axb5 {[%clk 0:02:17.7]} 21... axb5 {[%clk 0:01:52.3]} 22. Bb3 {[%clk 0:01:38.4]}
22... Bc6 {[%clk 0:01:35.2]} 23. Bf4 {[%clk 0:01:32.9]} 23... Na4 {[%clk
0:01:22.8]} 24. Rc1 {[%clk 0:01:17.4]} 24... Qb4 {[%clk 0:01:14.9]} 25. Bxc4
{[%clk 0:01:12.6]} 25... bxc4 {[%clk 0:01:16.8]} 26. Qc2 {[%clk 0:01:13.1]}
26... d5 {[%clk 0:01:12.3]} 27. Ne5 {[%clk 0:01:09.6]} 27... Rac8 {[%clk
0:00:59.5]} 28. Ng4 {[%clk 0:00:58.2]} 28... Bxd4 {[%clk 0:00:42.8]} 29. e5
{[%clk 0:00:35.3]} 29... Qb2 {[%clk 0:00:43.7]} 30. Qd1 {[%clk 0:00:29.4]} 30...
Bc5 {[%clk 0:00:16.1]} 31. Nf6+ {[%clk 0:00:26.7]} 31... Kh8 {[%clk 0:00:17.1]}
32. Qg4 {[%clk 0:00:19.8]} 32... Bxf2+ {[%clk 0:00:11.5]} 33. Kh2 {[%clk
0:00:20.6]} 33... Bxe1 {[%clk 0:00:11.6]} 34. Rxe1 {[%clk 0:00:20.5]} 34... Re6
{[%clk 0:00:10]} 35. Qh4 {[%clk 0:00:15.4]} 35... Rxf6 {[%clk 0:00:10.8]} 36.
Qxf6+ {[%clk 0:00:15.1]} 1-0

[Event "***Titled Tuesday 3|2 Blitz"]
[Site "Chess.com"]
[Date "2017.02.07"]
[Round "3"]
[White "RamonManon0g"]
[Black "A-Fier"]
[Result "0-1"]
[WhiteElo "2333"]
[BlackElo "2498"]
[TimeControl "180+2"]
[EndTime "13:42:07 PST"]
[Termination "A-Fier won on time"]

1. d4 {[%clk 0:03:02]} 1... Nf6 {[%clk 0:03:00]} 2. Bg5 {[%clk 0:03:01.3]} 2...
Ne4 {[%clk 0:03:00.4]} 3. Bf4 {[%clk 0:03:00.7]} 3... c5 {[%clk 0:03:01.2]} 4.
d5 {[%clk 0:03:01.6]} 4... Qb6 {[%clk 0:02:59.8]} 5. Nd2 {[%clk 0:03:02.7]} 5...
Qxb2 {[%clk 0:02:59.3]} 6. Nxe4 {[%clk 0:03:01.2]} 6... Qb4+ {[%clk 0:03:00.3]}
7. Bd2 {[%clk 0:03:01.4]} 7... Qxe4 {[%clk 0:03:00.8]} 8. Bc3 {[%clk 0:02:59.4]}
8... e6 {[%clk 0:02:54.7]} 9. dxe6 {[%clk 0:02:59.5]} 9... dxe6 {[%clk
0:02:55.3]} 10. e3 {[%clk 0:02:58.7]} 10... Nc6 {[%clk 0:02:55.6]} 11. Nf3
{[%clk 0:02:58.1]} 11... f6 {[%clk 0:02:53.1]} 12. Rb1 {[%clk 0:02:51.1]} 12...
Be7 {[%clk 0:02:52.1]} 13. Bd3 {[%clk 0:02:46.4]} 13... Qd5 {[%clk 0:02:52.9]}
14. e4 {[%clk 0:02:33.9]} 14... Qh5 {[%clk 0:02:42.1]} 15. Bb5 {[%clk
0:02:20.9]} 15... O-O {[%clk 0:02:36.3]} 16. O-O {[%clk 0:02:21.8]} 16... e5
{[%clk 0:02:30.1]} 17. Qd5+ {[%clk 0:02:18.5]} 17... Kh8 {[%clk 0:02:27.6]} 18.
Bxc6 {[%clk 0:02:19.9]} 18... bxc6 {[%clk 0:02:28.5]} 19. Qxc6 {[%clk
0:02:19.1]} 19... Bg4 {[%clk 0:02:30.1]} 20. Nd2 {[%clk 0:02:11.9]} 20... Rfc8
{[%clk 0:02:08.2]} 21. Qd5 {[%clk 0:01:40.6]} 21... Rd8 {[%clk 0:02:01.8]} 22.
Qc6 {[%clk 0:01:38.1]} 22... Bd7 {[%clk 0:01:56]} 23. Qc7 {[%clk 0:01:33.2]}
23... Qe8 {[%clk 0:01:52.6]} 24. Rb7 {[%clk 0:01:31.3]} 24... Bf8 {[%clk
0:01:45.8]} 25. Rxa7 {[%clk 0:01:26.4]} 25... Rxa7 {[%clk 0:01:39.4]} 26. Qxa7
{[%clk 0:01:28.3]} 26... Ra8 {[%clk 0:01:40.3]} 27. Qc7 {[%clk 0:01:22.1]} 27...
Rxa2 {[%clk 0:01:40.5]} 28. Rb1 {[%clk 0:01:19.5]} 28... Ra8 {[%clk 0:01:31.8]}
29. Rb7 {[%clk 0:01:15.2]} 29... Be6 {[%clk 0:01:32.8]} 30. h4 {[%clk
0:01:04.4]} 30... Qh5 {[%clk 0:01:31]} 31. Qc6 {[%clk 0:00:57.1]} 31... Qe8
{[%clk 0:01:21.8]} 32. Qb6 {[%clk 0:00:49.4]} 32... h5 {[%clk 0:01:17.3]} 33.
Nf1 {[%clk 0:00:42.3]} 33... Bg8 {[%clk 0:00:59.8]} 34. Ng3 {[%clk 0:00:41.1]}
34... Qg6 {[%clk 0:00:56.8]} 35. Nf5 {[%clk 0:00:21]} 35... Qg4 {[%clk
0:00:48.9]} 36. f3 {[%clk 0:00:18.4]} 36... Qf4 {[%clk 0:00:50]} 37. Rb8 {[%clk
0:00:10.5]} 37... Qc1+ {[%clk 0:00:50.9]} 38. Kh2 {[%clk 0:00:11]} 38... Ra2
{[%clk 0:00:37.5]} 39. Rxf8 {[%clk 0:00:09.4]} 39... Qxc2 {[%clk 0:00:39]} 0-1

[Event "***Titled Tuesday 3|2 Blitz"]
[Site "Chess.com"]
[Date "2017.02.07"]
[Round "3"]
[White "maciek_92"]
[Black "Rumpel-VK"]
[Result "1-0"]
[WhiteElo "2566"]
[BlackElo "2431"]
[TimeControl "180+2"]
[EndTime "13:42:09 PST"]
[Termination "maciek_92 won on time"]

1. c4 {[%clk 0:03:02]} 1... e5 {[%clk 0:02:45.9]} 2. Nc3 {[%clk 0:03:02.5]} 2...
Nc6 {[%clk 0:02:46.1]} 3. g3 {[%clk 0:03:03.7]} 3... f5 {[%clk 0:02:46.3]} 4.
Bg2 {[%clk 0:03:03.4]} 4... Nf6 {[%clk 0:02:47.2]} 5. a3 {[%clk 0:03:01.8]} 5...
g6 {[%clk 0:02:47.5]} 6. d3 {[%clk 0:02:55.1]} 6... Bg7 {[%clk 0:02:48]} 7. e3
{[%clk 0:02:50.4]} 7... O-O {[%clk 0:02:48.4]} 8. Nge2 {[%clk 0:02:52]} 8... d6
{[%clk 0:02:48.1]} 9. O-O {[%clk 0:02:53]} 9... Rb8 {[%clk 0:02:45.8]} 10. b4
{[%clk 0:02:53.5]} 10... Ne7 {[%clk 0:02:45.4]} 11. b5 {[%clk 0:02:47.1]} 11...
Kh8 {[%clk 0:02:45.4]} 12. a4 {[%clk 0:02:47.7]} 12... a5 {[%clk 0:02:42.1]} 13.
Ba3 {[%clk 0:02:31.2]} 13... b6 {[%clk 0:02:41.6]} 14. d4 {[%clk 0:02:32.4]}
14... e4 {[%clk 0:02:32]} 15. c5 {[%clk 0:02:32.2]} 15... Be6 {[%clk 0:02:12.7]}
16. Nf4 {[%clk 0:02:29.4]} 16... Bc4 {[%clk 0:02:13.3]} 17. cxd6 {[%clk
0:02:30.1]} 17... cxd6 {[%clk 0:02:12.7]} 18. d5 {[%clk 0:02:19.9]} 18... Bxf1
{[%clk 0:02:05.2]} 19. Bxf1 {[%clk 0:02:18]} 19... Qd7 {[%clk 0:01:43.4]} 20.
Ne6 {[%clk 0:02:05.3]} 20... Rfc8 {[%clk 0:01:43.7]} 21. Nxg7 {[%clk 0:02:06.7]}
21... Kxg7 {[%clk 0:01:41.6]} 22. Qd4 {[%clk 0:02:01.6]} 22... Ng8 {[%clk
0:01:28.9]} 23. Ne2 {[%clk 0:01:58.7]} 23... g5 {[%clk 0:01:20.2]} 24. Qd2
{[%clk 0:01:44.7]} 24... Kg6 {[%clk 0:01:17.9]} 25. Nd4 {[%clk 0:01:37.6]} 25...
Ne7 {[%clk 0:01:10.7]} 26. Nc6 {[%clk 0:01:33.3]} 26... Rb7 {[%clk 0:01:11.2]}
27. Bc4 {[%clk 0:01:29.5]} 27... f4 {[%clk 0:00:46.6]} 28. exf4 {[%clk
0:01:22.9]} 28... gxf4 {[%clk 0:00:42.7]} 29. Qxf4 {[%clk 0:01:18.4]} 29...
Nexd5 {[%clk 0:00:36]} 30. Bxd5 {[%clk 0:01:12.7]} 30... Nxd5 {[%clk 0:00:36.8]}
31. Qxe4+ {[%clk 0:00:50.4]} 31... Qf5 {[%clk 0:00:37.4]} 32. Qxf5+ {[%clk
0:00:49.2]} 32... Kxf5 {[%clk 0:00:37.6]} 33. Rd1 {[%clk 0:00:50.7]} 33... Nf6
{[%clk 0:00:18]} 34. Rxd6 {[%clk 0:00:46.6]} 34... Re8 {[%clk 0:00:17.6]} 35.
Rd4 {[%clk 0:00:42.3]} 35... Rd7 {[%clk 0:00:15.8]} 36. Rf4+ {[%clk 0:00:42.3]}
36... Kg6 {[%clk 0:00:16.3]} 37. Bb2 {[%clk 0:00:41.8]} 37... Rd6 {[%clk
0:00:15.8]} 38. Ne5+ {[%clk 0:00:41.1]} 38... Kh6 {[%clk 0:00:11.4]} 39. Nf7+
{[%clk 0:00:41.7]} 1-0

[Event "***Titled Tuesday 3|2 Blitz"]
[Site "Chess.com"]
[Date "2017.02.07"]
[Round "3"]
[White "MateusViageiro"]
[Black "Paralinch"]
[Result "0-1"]
[WhiteElo "2429"]
[BlackElo "2619"]
[TimeControl "180+2"]
[EndTime "13:42:13 PST"]
[Termination "Paralinch won by resignation"]

1. Nf3 {[%clk 0:03:01.9]} 1... c5 {[%clk 0:03:00.6]} 2. g3 {[%clk 0:03:01.2]}
2... g6 {[%clk 0:03:01.2]} 3. Bg2 {[%clk 0:03:00.6]} 3... Bg7 {[%clk 0:03:02.4]}
4. O-O {[%clk 0:03:01.2]} 4... Nc6 {[%clk 0:03:03.2]} 5. c4 {[%clk 0:03:02.1]}
5... e6 {[%clk 0:03:04]} 6. Nc3 {[%clk 0:03:03.2]} 6... Nge7 {[%clk 0:03:05.3]}
7. e3 {[%clk 0:03:02]} 7... O-O {[%clk 0:03:05.7]} 8. d4 {[%clk 0:03:02.6]} 8...
cxd4 {[%clk 0:03:06.9]} 9. Nxd4 {[%clk 0:03:03.1]} 9... d5 {[%clk 0:03:07.9]}
10. Nxc6 {[%clk 0:02:59.7]} 10... bxc6 {[%clk 0:03:08.5]} 11. cxd5 {[%clk
0:03:00.8]} 11... cxd5 {[%clk 0:03:09.7]} 12. e4 {[%clk 0:02:58]} 12... d4
{[%clk 0:03:06.9]} 13. Ne2 {[%clk 0:02:52.9]} 13... Rb8 {[%clk 0:03:06]} 14. f4
{[%clk 0:02:42.3]} 14... e5 {[%clk 0:02:56.5]} 15. fxe5 {[%clk 0:02:37.8]} 15...
Bxe5 {[%clk 0:02:54.5]} 16. Nf4 {[%clk 0:02:38.9]} 16... Bg7 {[%clk 0:02:46.2]}
17. Kh1 {[%clk 0:02:38.4]} 17... Ba6 {[%clk 0:02:44.4]} 18. Re1 {[%clk
0:02:38.7]} 18... d3 {[%clk 0:02:40.7]} 19. Qd2 {[%clk 0:02:36]} 19... Nc6
{[%clk 0:02:35.9]} 20. Nd5 {[%clk 0:02:22.7]} 20... Nd4 {[%clk 0:02:35]} 21. Rd1
{[%clk 0:02:21]} 21... f5 {[%clk 0:02:16.8]} 22. exf5 {[%clk 0:02:18.2]} 22...
Rxf5 {[%clk 0:02:09.4]} 23. Nb4 {[%clk 0:02:17.4]} 23... Bb7 {[%clk 0:02:02.3]}
24. Nxd3 {[%clk 0:02:14.7]} 24... Qf6 {[%clk 0:01:40]} 25. Nf4 {[%clk
0:02:08.9]} 25... g5 {[%clk 0:01:39.5]} 26. Bxb7 {[%clk 0:02:04.2]} 26... Rxb7
{[%clk 0:01:35.2]} 27. Qg2 {[%clk 0:02:04.8]} 27... Rf7 {[%clk 0:01:09]} 28. Nh5
{[%clk 0:02:03.2]} 28... Rf1+ {[%clk 0:01:09.8]} 29. Rxf1 {[%clk 0:01:57.2]}
29... Qxf1+ {[%clk 0:01:11.7]} 30. Qxf1 {[%clk 0:01:55.7]} 30... Rxf1+ {[%clk
0:01:13.6]} 31. Kg2 {[%clk 0:01:56.8]} 31... Rd1 {[%clk 0:01:15.1]} 32. Nxg7
{[%clk 0:01:56]} 32... Kxg7 {[%clk 0:01:16.2]} 33. b3 {[%clk 0:01:57.2]} 33...
Kg6 {[%clk 0:01:15.9]} 34. Kf2 {[%clk 0:01:53.2]} 34... Rh1 {[%clk 0:00:54.1]}
35. Kg2 {[%clk 0:01:49.7]} 35... Rd1 {[%clk 0:00:55.1]} 36. Kf2 {[%clk
0:01:50.6]} 36... h5 {[%clk 0:00:47.3]} 37. Bb2 {[%clk 0:01:47.8]} 37... Rd2+
{[%clk 0:00:44]} 38. Ke3 {[%clk 0:01:49]} 38... Rxb2 {[%clk 0:00:45.5]} 39. Kxd4
{[%clk 0:01:50]} 39... Rxh2 {[%clk 0:00:47]} 40. a4 {[%clk 0:01:41.4]} 40... Rg2
{[%clk 0:00:41.7]} 41. b4 {[%clk 0:01:42.6]} 41... Rxg3 {[%clk 0:00:43]} 42. b5
{[%clk 0:01:43.9]} 42... h4 {[%clk 0:00:38.2]} 43. a5 {[%clk 0:01:44.9]} 43...
Rf3 {[%clk 0:00:34.4]} 44. b6 {[%clk 0:01:39.7]} 44... axb6 {[%clk 0:00:35.4]}
45. axb6 {[%clk 0:01:39.6]} 45... Rb3 {[%clk 0:00:33.1]} 46. Kc5 {[%clk
0:01:39.1]} 46... h3 {[%clk 0:00:31.8]} 47. Kc6 {[%clk 0:01:37.2]} 47... g4
{[%clk 0:00:30.2]} 48. Ra5 {[%clk 0:01:31.9]} 48... h2 {[%clk 0:00:23.6]} 49.
Ra1 {[%clk 0:01:32.3]} 49... g3 {[%clk 0:00:23.8]} 50. b7 {[%clk 0:01:33.1]}
50... Rxb7 {[%clk 0:00:23.8]} 51. Kxb7 {[%clk 0:01:34.1]} 51... g2 {[%clk
0:00:24.9]} 52. Ra6+ {[%clk 0:01:35.1]} 52... Kg7 {[%clk 0:00:24.2]} 53. Ra2
{[%clk 0:01:33.9]} 53... h1=Q {[%clk 0:00:24.2]} 0-1

[Event "***Titled Tuesday 3|2 Blitz"]
[Site "Chess.com"]
[Date "2017.02.07"]
[Round "3"]
[White "MattyDPerrine"]
[Black "filali-oujda"]
[Result "1-0"]
[WhiteElo "2190"]
[BlackElo "2179"]
[TimeControl "180+2"]
[EndTime "13:42:17 PST"]
[Termination "MattyDPerrine won by resignation"]

1. d4 {[%clk 0:03:02]} 1... c6 {[%clk 0:03:02]} 2. c4 {[%clk 0:03:02.8]} 2... d5
{[%clk 0:03:01.5]} 3. Nc3 {[%clk 0:03:00.9]} 3... Nf6 {[%clk 0:03:01.9]} 4. Nf3
{[%clk 0:03:02]} 4... e6 {[%clk 0:02:52.7]} 5. e3 {[%clk 0:02:59.4]} 5... a6
{[%clk 0:02:49.7]} 6. Qc2 {[%clk 0:02:58.2]} 6... Bd6 {[%clk 0:02:50.2]} 7. Bd2
{[%clk 0:02:56.9]} 7... O-O {[%clk 0:02:51.1]} 8. g4 {[%clk 0:02:57.2]} 8...
Nbd7 {[%clk 0:02:51.9]} 9. g5 {[%clk 0:02:56.6]} 9... Nh5 {[%clk 0:02:49.6]} 10.
Be2 {[%clk 0:02:43.5]} 10... g6 {[%clk 0:02:49.9]} 11. O-O-O {[%clk 0:02:35.4]}
11... dxc4 {[%clk 0:02:35.7]} 12. Ne4 {[%clk 0:02:32]} 12... Be7 {[%clk
0:02:34.9]} 13. Bxc4 {[%clk 0:02:30.7]} 13... c5 {[%clk 0:02:28.1]} 14. dxc5
{[%clk 0:02:24.1]} 14... b5 {[%clk 0:02:23.1]} 15. Bd3 {[%clk 0:01:54.2]} 15...
Nxc5 {[%clk 0:02:11]} 16. Nxc5 {[%clk 0:01:39.9]} 16... Bxc5 {[%clk 0:02:12.9]}
17. Be4 {[%clk 0:01:40.8]} 17... Ra7 {[%clk 0:01:59.4]} 18. Kb1 {[%clk
0:01:25.1]} 18... Qb6 {[%clk 0:01:49.1]} 19. b4 {[%clk 0:00:47.9]} 19... Be7
{[%clk 0:01:45.9]} 20. Bc3 {[%clk 0:00:45.1]} 20... Rc7 {[%clk 0:01:29.6]} 21.
Qd3 {[%clk 0:00:21.8]} 21... Rc4 {[%clk 0:01:23.8]} 22. Ne5 {[%clk 0:00:18.9]}
22... Rc7 {[%clk 0:01:01]} 23. f4 {[%clk 0:00:19.3]} 23... Bb7 {[%clk 0:00:55]}
24. Bd4 {[%clk 0:00:19.7]} 24... Qd6 {[%clk 0:00:54.3]} 25. Bxb7 {[%clk
0:00:19.2]} 25... Qxb4+ {[%clk 0:00:54.8]} 26. Qb3 {[%clk 0:00:18.8]} 26... Rxb7
{[%clk 0:00:53]} 27. Nc6 {[%clk 0:00:17.3]} 27... Qxb3+ {[%clk 0:00:48.9]} 28.
axb3 {[%clk 0:00:19.2]} 28... Rc8 {[%clk 0:00:49.2]} 29. Rc1 {[%clk 0:00:19.1]}
29... Re8 {[%clk 0:00:48.8]} 30. Nxe7+ {[%clk 0:00:17.8]} 30... Rbxe7 {[%clk
0:00:49]} 31. Rc6 {[%clk 0:00:19.4]} 31... Ra8 {[%clk 0:00:42.3]} 32. Rhc1
{[%clk 0:00:19.9]} 32... Ree8 {[%clk 0:00:42.2]} 33. Rb6 {[%clk 0:00:18.5]}
33... Ng7 {[%clk 0:00:43.1]} 34. Bxg7 {[%clk 0:00:19.6]} 34... Kxg7 {[%clk
0:00:43.6]} 35. Rcc6 {[%clk 0:00:21.5]} 35... Red8 {[%clk 0:00:43.3]} 36. Rxa6
{[%clk 0:00:20.5]} 36... Rxa6 {[%clk 0:00:44.1]} 37. Rxa6 {[%clk 0:00:22.4]}
37... Rd3 {[%clk 0:00:45.5]} 38. Kb2 {[%clk 0:00:16.3]} 38... Rxe3 {[%clk
0:00:46.1]} 39. Rb6 {[%clk 0:00:17.8]} 39... Rf3 {[%clk 0:00:43.5]} 40. Rxb5
{[%clk 0:00:18.2]} 40... Rxf4 {[%clk 0:00:45]} 41. Rc5 {[%clk 0:00:17.5]} 41...
Rf2+ {[%clk 0:00:44.6]} 42. Rc2 {[%clk 0:00:16.7]} 42... Rxh2 {[%clk 0:00:46.5]}
43. Rxh2 {[%clk 0:00:17.3]} 43... e5 {[%clk 0:00:47.2]} 44. Re2 {[%clk
0:00:18.2]} 44... f6 {[%clk 0:00:47.8]} 45. gxf6+ {[%clk 0:00:20.1]} 45... Kxf6
{[%clk 0:00:49.7]} 46. b4 {[%clk 0:00:22]} 1-0